fUSD/lending_fUSD_20240113
["ID","MTS","AMOUNT","RATE_DAILY","PERIOD"]
[311511072,1705170644005,-500.0,0.00022193,2]
[311511073,1705170644014,-515.98,0.00022193,2]
[311511074,1705170644023,-515.98,0.00022193,2]
[311511075,1705170644032,-515.98,0.00022193,2]
[311511076,1705170644042,-500.0,0.00022193,2]
[311511077,1705170644051,-515.98,0.00022193,2]
[311511078,1705170644060,-500.0,0.00022193,2]
[311511079,1705170644069,-515.98,0.00022193,2]
[311511080,1705170644078,-500.0,0.00022193,2]
[311511081,1705170644088,-515.98,0.00022193,2]
[311511082,1705170644097,-500.0,0.00022193,2]
[311511083,1705170644106,-515.98,0.00022193,2]
[311511084,1705170644116,-174.40713533,0.00022193,2]
[311511085,1705170644125,-500.0,0.00022193,2]
[311511086,1705170644135,-515.98,0.00022193,2]
[311511087,1705170644144,-500.0,0.00022193,2]
[311511088,1705170644153,-515.98,0.00022193,2]
[311511089,1705170644162,-500.0,0.00022193,2]
[311511090,1705170644171,-500.0,0.00022193,2]
[311511091,1705170644181,-500.0,0.00022193,2]
[311511092,1705170644190,-1330351.19835208,0.00022193,2]
[311511093,1705170644199,-638423.67881364,0.00022194,2]
[311511094,1705170644209,-500.0,0.00022194,2]
[311511095,1705170644218,-500.0,0.00022194,2]
[311511096,1705170644226,-500.0,0.00022194,2]
[311511097,1705170644236,-500.0,0.00022194,2]
[311511098,1705170644245,-500.0,0.00022194,2]
[311511099,1705170644255,-500.0,0.00022194,2]
[311511100,1705170644264,-536.4172863,0.00022194,2]
[311511101,1705170644274,-500.0,0.00022194,2]
[311511102,1705170644283,-500.0,0.00022194,2]
[311511103,1705170644294,-500.0,0.00022194,2]
[311511104,1705170644303,-500.0,0.00022194,2]
[311511105,1705170644312,-500.0,0.00022194,2]
[311511106,1705170644321,-500.0,0.00022194,2]
[311511107,1705170644330,-500.0,0.00022194,2]
[311511108,1705170644339,-500.0,0.00022194,2]
[311511109,1705170644348,-500.0,0.00022194,2]
[311511110,1705170644357,-500.0,0.00022194,2]
[311511111,1705170644366,-500.0,0.00022194,2]
[311511112,1705170644376,-262.57633701,0.00022194,2]
[311511113,1705170644385,-500.0,0.00022194,2]
[311511114,1705170644394,-500.0,0.00022194,2]
[311511115,1705170644403,-500.0,0.00022194,2]
[311511116,1705170644412,-500.0,0.00022194,2]
[311511117,1705170644422,-500.0,0.00022194,2]
[311511118,1705170644431,-500.0,0.00022194,2]
[311511119,1705170644439,-349.92289433,0.00022194,2]
[311511120,1705170644450,-500.0,0.00022194,2]
[311511121,1705170644459,-500.0,0.00022194,2]
[311511122,1705170644468,-500.0,0.00022194,2]
[311511123,1705170644477,-500.0,0.00022194,2]
[311511124,1705170644486,-500.0,0.00022194,2]
[311511125,1705170644494,-500.0,0.00022194,2]
[311511126,1705170644503,-500.0,0.00022194,2]
[311511127,1705170644512,-500.0,0.00022194,2]
[311511128,1705170644521,-500.0,0.00022194,2]
[311511129,1705170644530,-500.0,0.00022194,2]
[311511130,1705170644539,-518.73083385,0.00022194,2]
[311511131,1705170644548,-221.83234364,0.00022194,2]
[311511132,1705170644557,-500.0,0.00022194,2]
[311511133,1705170644566,-500.0,0.00022194,2]
[311511134,1705170644575,-500.0,0.00022194,2]
[311511135,1705170644585,-500.0,0.00022194,2]
[311511136,1705170644594,-500.0,0.00022194,2]
[311511137,1705170644603,-500.0,0.00022194,2]
[311511138,1705170644612,-587.07562271,0.00022194,2]
[311511139,1705170644622,-500.0,0.00022194,2]
[311511140,1705170644631,-500.0,0.00022194,2]
[311511141,1705170644640,-500.0,0.00022194,2]
[311511142,1705170644648,-500.0,0.00022194,2]
[311511143,1705170644657,-500.0,0.00022194,2]
[311511144,1705170644666,-500.0,0.00022194,2]
[311511145,1705170644676,-500.0,0.00022194,2]
[311511146,1705170644685,-500.0,0.00022194,2]
[311511147,1705170644694,-500.0,0.00022194,2]
[311511148,1705170644703,-500.0,0.00022194,2]
[311511149,1705170644712,-500.0,0.00022194,2]
[311511150,1705170644722,-480.5,0.00022194,2]
[311511151,1705170644731,-500.0,0.00022194,2]
[311511152,1705170644741,-500.0,0.00022194,2]
[311511153,1705170644750,-500.0,0.00022194,2]
[311511154,1705170644759,-500.0,0.00022194,2]
[311511155,1705170644768,-500.0,0.00022194,2]
[311511156,1705170644777,-500.0,0.00022194,2]
[311511157,1705170644787,-500.0,0.00022194,2]
[311511158,1705170644796,-500.0,0.00022194,2]
[311511159,1705170644806,-503.54,0.00022194,2]
[311511160,1705170644815,-500.0,0.00022194,2]
[311511161,1705170644824,-500.0,0.00022194,2]
[311511162,1705170644833,-500.0,0.00022194,2]
[311511163,1705170644842,-500.0,0.00022194,2]
[311511164,1705170644851,-500.0,0.00022194,2]
[311511165,1705170644861,-500.0,0.00022194,2]
[311511166,1705170644871,-500.0,0.00022194,2]
[311511167,1705170644880,-500.0,0.00022194,2]
[311511168,1705170644889,-500.0,0.00022194,2]
[311511169,1705170644898,-500.0,0.00022194,2]
[311511170,1705170644907,-500.0,0.00022194,2]
[311511171,1705170644916,-500.0,0.00022194,2]
[311511172,1705170644924,-301.42,0.00022194,2]
[311511173,1705170644934,-500.0,0.00022194,2]
[311511174,1705170644943,-500.0,0.00022194,2]
[311511175,1705170644952,-500.0,0.00022194,2]
[311511176,1705170644961,-500.0,0.00022194,2]
[311511177,1705170644971,-500.0,0.00022194,2]
[311511178,1705170644983,-500.0,0.00022194,2]
[311511179,1705170644992,-500.0,0.00022194,2]
[311511180,1705170645001,-500.0,0.00022194,2]
[311511181,1705170645010,-500.0,0.00022194,2]
[311511182,1705170645019,-241.73,0.00022194,2]
[311511183,1705170645028,-500.0,0.00022194,2]
[311511184,1705170645037,-500.0,0.00022194,2]
[311511185,1705170645046,-500.0,0.00022194,2]
[311511186,1705170645056,-500.0,0.00022194,2]
[311511187,1705170645065,-500.0,0.00022194,2]
[311511188,1705170645074,-482.29,0.00022194,2]
[311511189,1705170645083,-500.0,0.00022194,2]
[311511190,1705170645092,-500.0,0.00022194,2]
[311511191,1705170645101,-500.0,0.00022194,2]
[311511192,1705170645110,-500.0,0.00022194,2]
[311511193,1705170645119,-500.0,0.00022194,2]
[311511194,1705170645128,-500.0,0.00022194,2]
[311511195,1705170645137,-500.0,0.00022194,2]
[311511196,1705170645147,-500.0,0.00022194,2]
[311511197,1705170645155,-500.0,0.00022194,2]
[311511198,1705170645164,-500.0,0.00022194,2]
[311511199,1705170645173,-500.0,0.00022194,2]
[311511200,1705170645182,-500.0,0.00022194,2]
[311511201,1705170645191,-500.0,0.00022194,2]
[311511202,1705170645200,-500.0,0.00022194,2]
[311511203,1705170645209,-500.0,0.00022194,2]
[311511204,1705170645218,-500.0,0.00022194,2]
[311511205,1705170645228,-500.0,0.00022194,2]
[311511206,1705170645237,-500.0,0.00022194,2]
[311511207,1705170645246,-500.0,0.00022194,2]
[311511208,1705170645255,-500.0,0.00022194,2]
[311511209,1705170645264,-500.0,0.00022194,2]
[311511210,1705170645273,-500.0,0.00022194,2]
[311511211,1705170645282,-500.0,0.00022194,2]
[311511212,1705170645291,-500.0,0.00022194,2]
[311511213,1705170645300,-1344.66,0.00022194,2]
[311511214,1705170645309,-1344.66,0.00022194,2]
[311511215,1705170645318,-1344.66,0.00022194,2]
[311511216,1705170645327,-1344.66,0.00022194,2]
[311511217,1705170645337,-500.0,0.00022194,2]
[311511218,1705170645345,-1344.66,0.00022194,2]
[311511219,1705170645354,-500.0,0.00022194,2]
[311511220,1705170645363,-500.0,0.00022194,2]
[311511221,1705170645372,-500.0,0.00022194,2]
[311511222,1705170645381,-500.0,0.00022194,2]
[311511223,1705170645390,-500.0,0.00022194,2]
[311511224,1705170645399,-500.0,0.00022194,2]
[311511225,1705170645408,-500.0,0.00022194,2]
[311511226,1705170645416,-500.0,0.00022194,2]
[311511227,1705170645425,-500.0,0.00022194,2]
[311511228,1705170645434,-500.0,0.00022194,2]
[311511229,1705170645443,-500.0,0.00022194,2]
[311511230,1705170645452,-500.0,0.00022194,2]
[311511231,1705170645461,-505.44692346,0.00022194,2]
[311511232,1705170645470,-500.0,0.00022194,2]
[311511233,1705170645479,-500.0,0.00022194,2]
[311511234,1705170645488,-500.0,0.00022194,2]
[311511235,1705170645497,-500.0,0.00022194,2]
[311511236,1705170645506,-500.0,0.00022194,2]
[311511237,1705170645515,-500.0,0.00022194,2]
[311511238,1705170645524,-500.0,0.00022194,2]
[311511239,1705170645533,-500.0,0.00022194,2]
[311511240,1705170645543,-576.37,0.00022194,2]
[311511242,1705170645552,-568.64,0.00022194,2]
[311511244,1705170645562,-568.64,0.00022194,2]
[311511246,1705170645571,-568.64,0.00022194,2]
[311511247,1705170645580,-568.64,0.00022194,2]
[311511248,1705170645589,-568.64,0.00022194,2]
[311511249,1705170645599,-501.66,0.00022194,2]
[311511250,1705170645608,-501.66,0.00022194,2]
[311511251,1705170645617,-501.66,0.00022194,2]
[311511252,1705170645627,-501.66,0.00022194,2]
[311511254,1705170645636,-501.66,0.00022194,2]
[311511256,1705170645647,-500.0,0.00022194,2]
[311511258,1705170645656,-500.0,0.00022194,2]
[311511260,1705170645665,-500.0,0.00022194,2]
[311511261,1705170645675,-500.0,0.00022194,2]
[311511262,1705170645684,-500.0,0.00022194,2]
[311511263,1705170645693,-997.96,0.00022194,2]
[311511264,1705170645702,-997.96,0.00022194,2]
[311511265,1705170645711,-997.96,0.00022194,2]
[311511266,1705170645720,-997.96,0.00022194,2]
[311511269,1705170645730,-997.96,0.00022194,2]
[311511272,1705170645739,-500.0,0.00022194,2]
[311511273,1705170645748,-500.0,0.00022194,2]
[311511274,1705170645758,-500.0,0.00022194,2]
[311511275,1705170645767,-500.0,0.00022194,2]
[311511276,1705170645777,-270.18,0.00022194,2]
[311511277,1705170645786,-937.95,0.00022194,2]
[311511279,1705170645797,-937.95,0.00022194,2]
[311511282,1705170645806,-937.95,0.00022194,2]
[311511284,1705170645816,-937.95,0.00022194,2]
[311511287,1705170645826,-937.95,0.00022194,2]
[311511290,1705170645835,-500.0,0.00022194,2]
[311511293,1705170645845,-500.0,0.00022194,2]
[311511296,1705170645854,-335.93,0.00022194,2]
[311511299,1705170645864,-1476.88,0.00022194,2]
[311511302,1705170645873,-1476.88,0.00022194,2]
[311511305,1705170645882,-1476.88,0.00022194,2]
[311511307,1705170645891,-1476.88,0.00022194,2]
[311511309,1705170645900,-1476.88,0.00022194,2]
[311511311,1705170645910,-1896.68,0.00022194,2]
[311511313,1705170645919,-1896.68,0.00022194,2]
[311511315,1705170645928,-1896.68,0.00022194,2]
[311511317,1705170645938,-1896.68,0.00022194,2]
[311511319,1705170645947,-1896.68,0.00022194,2]
[311511321,1705170645956,-1054.96,0.00022194,2]
[311511323,1705170645966,-1054.96,0.00022194,2]
[311511325,1705170645976,-1054.96,0.00022194,2]
[311511327,1705170645989,-1054.96,0.00022194,2]
[311511330,1705170645999,-1054.96,0.00022194,2]
[311511331,1705170646008,-1083.79,0.00022194,2]
[311511333,1705170646018,-1083.79,0.00022194,2]
[311511335,1705170646028,-1083.79,0.00022194,2]
[311511337,1705170646038,-1083.79,0.00022194,2]
[311511339,1705170646047,-1083.79,0.00022194,2]
[311511341,1705170646057,-500.0,0.00022194,2]
[311511343,1705170646066,-500.0,0.00022194,2]
[311511345,1705170646075,-500.0,0.00022194,2]
[311511347,1705170646085,-500.0,0.00022194,2]
[311511349,1705170646094,-500.0,0.00022194,2]
[311511351,1705170646104,-500.0,0.00022194,2]
[311511353,1705170646114,-500.0,0.00022194,2]
[311511355,1705170646123,-500.0,0.00022194,2]
[311511357,1705170646132,-500.0,0.00022194,2]
[311511359,1705170646142,-500.0,0.00022194,2]
[311511361,1705170646151,-515.98,0.00022194,2]
[311511363,1705170646160,-515.98,0.00022194,2]
[311511365,1705170646169,-515.98,0.00022194,2]
[311511367,1705170646178,-500.0,0.00022194,2]
[311511369,1705170646187,-515.98,0.00022194,2]
[311511371,1705170646196,-500.0,0.00022194,2]
[311511373,1705170646205,-515.98,0.00022194,2]
[311511375,1705170646214,-500.0,0.00022194,2]
[311511378,1705170646223,-500.0,0.00022194,2]
[311511380,1705170646233,-500.0,0.00022194,2]
[311511382,1705170646242,-914.75035507,0.00022195,2]
[311511383,1705170646251,-251345.67962026,0.00022195,2]
[311511384,1705170646548,-352.66311996,0.00022192,2]
[311511385,1705170646561,-147.33688004,0.00022192,2]
[311511386,1705170646570,-396.49311996,0.00022195,2]
[311511387,1705170646597,-1314.39513694,0.00022195,2]
[311511388,1705170646800,16750.41488075,0.00022099,2]
[311511389,1705170647619,-661.16,0.00022192,2]
[311511390,1705170647629,-500.0,0.00022192,2]
[311511391,1705170647639,-219.75632,0.00022193,2]
[311511392,1705170647651,-280.24368,0.00022193,2]
[311511393,1705170647661,-661.16,0.00022193,2]
[311511394,1705170647670,-500.0,0.00022193,2]
[311511395,1705170647680,-661.16,0.00022193,2]
[311511396,1705170647689,-500.0,0.00022193,2]
[311511397,1705170647699,-661.16,0.00022193,2]
[311511398,1705170647708,-500.0,0.00022193,2]
[311511399,1705170647718,-661.16,0.00022193,2]
[311511400,1705170647727,-661.16,0.00022193,2]
[311511401,1705170647737,-500.0,0.00022193,2]
[311511402,1705170647746,-661.16,0.00022193,2]
[311511403,1705170647755,-500.0,0.00022193,2]
[311511404,1705170647765,-661.16,0.00022193,2]
[311511405,1705170647775,-500.0,0.00022193,2]
[311511406,1705170647784,-500.0,0.00022193,2]
[311511407,1705170647795,-661.16,0.00022193,2]
[311511408,1705170647805,-500.0,0.00022193,2]
[311511409,1705170647814,-500.98432951,0.00022193,2]
[311511410,1705170647823,-661.16,0.00022194,2]
[311511411,1705170647833,-661.16,0.00022194,2]
[311511412,1705170647842,-500.0,0.00022194,2]
[311511413,1705170647851,-661.16,0.00022194,2]
[311511414,1705170647861,-500.0,0.00022194,2]
[311511415,1705170647871,-508.56586607,0.00022194,2]
[311511416,1705170647883,-152.59413393,0.00022194,2]
[311511417,1705170647893,-336.80880347,0.00022194,2]
[311511418,1705170647902,-661.16,0.00022194,2]
[311511419,1705170647911,-802968.68916131,0.00022195,2]
[311511420,1705170647921,-156.5682,0.00022195,2]
[311511421,1705170647931,-737.65,0.00022195,2]
[311511422,1705170647941,-500.0,0.00022196,2]
[311511423,1705170647950,-500.0,0.00022196,2]
[311511424,1705170647961,-500.0,0.00022196,2]
[311511425,1705170647974,-500.0,0.00022196,2]
[311511426,1705170647986,-500.0,0.00022196,2]
[311511427,1705170647997,-738.08,0.00022197,2]
[311511428,1705170648006,-100000.0,0.00022197,2]
[311511429,1705170648016,-39789.9313,0.00022197,2]
[311511430,1705170648025,-937.95,0.00022198,2]
[311511431,1705170648035,-1476.88,0.00022198,2]
[311511432,1705170648046,-1896.68,0.00022198,2]
[311511433,1705170648056,-1054.96,0.00022198,2]
[311511434,1705170648065,-1083.79,0.00022198,2]
[311511435,1705170648075,-500.0,0.00022198,2]
[311511436,1705170648085,-500.0,0.00022198,2]
[311511437,1705170648095,-661.16,0.00022198,2]
[311511438,1705170648105,-734.39,0.00022198,2]
[311511439,1705170648115,-731.62,0.00022198,2]
[311511440,1705170648124,-709.78,0.00022198,2]
[311511441,1705170648134,-19755.0846,0.00022199,2]
[311511442,1705170648143,-150.0,0.00022203,2]
[311511443,1705170648153,-1646.86032977,0.00022208,2]
[311511444,1705170648162,-151.75,0.00022209,2]
[311511445,1705170648172,-150.0,0.00022232,2]
[311511446,1705170648181,-150.46768086,0.00022235,2]
[311511447,1705170648191,-150.0,0.00022255,2]
[311511448,1705170648200,-155.19,0.00022259,2]
[311511449,1705170648209,-1429.91986559,0.0002226,2]
[311511450,1705170648219,-152.63,0.00022279,2]
[311511451,1705170648229,-1500.0,0.00022281,2]
[311511452,1705170648238,-150.0,0.00022283,2]
[311511453,1705170648247,-1226.42,0.00022286,2]
[311511454,1705170648256,-176.13,0.0002229,2]
[311511455,1705170648266,-553.57761896,0.00022291,2]
[311511456,1705170648275,-150.0,0.00022291,2]
[311511457,1705170648284,-301.49480687,0.00022297,2]
[311511458,1705170648295,-1344.66,0.00022298,2]
[311511459,1705170648304,-568.64,0.00022298,2]
[311511460,1705170648314,-501.66,0.00022298,2]
[311511461,1705170648323,-308.85837549,0.00022298,2]
[311511462,1705170648333,-997.96,0.00022298,2]
[311511463,1705170648342,-515.98,0.00022298,2]
[311511464,1705170648351,-500.0,0.00022298,2]
[311511465,1705170648361,-486.74627673,0.00022299,2]
[311511466,1705170648370,-517.96654404,0.00022299,2]
[311511467,1705170648379,-3345.0,0.000223,2]
[311511468,1705170648389,-17073.0,0.000223,2]
[311511469,1705170648398,-1646.86032977,0.00022324,2]
[311511470,1705170648408,-150.0,0.00022325,2]
[311511471,1705170648417,-150.0,0.0002233,2]
[311511472,1705170648427,-150.0,0.00022338,2]
[311511473,1705170648436,-150.0,0.0002234,2]
[311511474,1705170648446,-380.77,0.00022347,2]
[311511475,1705170648455,-154.6,0.00022356,2]
[311511476,1705170648464,-150.0,0.00022378,2]
[311511477,1705170648474,-155.19,0.00022384,2]
[311511478,1705170648483,-17944.4417,0.00022399,2]
[311511479,1705170648492,-1226.42,0.00022399,2]
[311511480,1705170648502,-500.0,0.000224,2]
[311511481,1705170648511,-165.19,0.00022408,2]
[311511482,1705170648521,-150.0,0.00022411,2]
[311511483,1705170648530,-152.63,0.0002242,2]
[311511484,1705170648540,-151.75,0.00022421,2]
[311511485,1705170648550,-246.16910552,0.00022425,2]
[311511486,1705170648559,-306.60094349,0.00022431,2]
[311511487,1705170648569,-1000.0,0.00022434,2]
[311511488,1705170648580,-1646.86032977,0.00022439,2]
[311511489,1705170648589,-150.0,0.0002244,2]
[311511490,1705170648599,-150.0,0.00022445,2]
[311511491,1705170648608,-1500.0,0.00022445,2]
[311511492,1705170648618,-150.0,0.00022462,2]
[311511493,1705170648627,-307.40170157,0.00022464,2]
[311511494,1705170648637,-800.0,0.00022466,2]
[311511495,1705170648646,-1078.50519296,0.00022467,2]
[311511496,1705170648656,-553.57761896,0.00022487,2]
[311511497,1705170648665,-150.0,0.00022494,2]
[311511498,1705170648674,-166.776333,0.00022497,2]
[311511499,1705170648684,-500.0,0.00022497,2]
[311511500,1705170648694,-500.0,0.00022497,2]
[311511501,1705170648704,-209.0,0.00022497,2]
[311511502,1705170648714,-500.0,0.00022497,2]
[311511503,1705170648724,-286.43833932,0.00022497,2]
[311511504,1705170648735,-161.83172394,0.00022497,2]
[311511505,1705170648744,-328.50830656,0.00022497,2]
[311511506,1705170648754,-500.0,0.00022499,2]
[311511507,1705170648764,-19110.28636174,0.000225,2]
[311511508,1705170648774,-1896.27,0.000225,2]
[311511509,1705170648783,-155.19,0.00022508,2]
[311511510,1705170648793,-300.0,0.0002251,2]
[311511511,1705170648803,-1226.42,0.00022512,2]
[311511512,1705170648812,-500.0,0.00022525,2]
[311511513,1705170648822,-155.59197994,0.00022536,2]
[311511514,1705170648833,-1500.0,0.00022543,2]
[311511515,1705170648843,-5000.0,0.00022553,2]
[311511516,1705170648853,-353.137561,0.00022553,2]
[311511517,1705170648862,-353.137561,0.00022553,2]
[311511518,1705170648873,-1646.86032977,0.00022554,2]
[311511519,1705170648882,-1000.0,0.00022554,2]
[311511520,1705170648892,-152.63,0.00022561,2]
[311511521,1705170648902,-150.0,0.00022561,2]
[311511522,1705170648911,-380.77,0.00022562,2]
[311511523,1705170648921,-150.0,0.00022563,2]
[311511524,1705170648931,-150.0,0.00022571,2]
[311511525,1705170648940,-150.0,0.00022585,2]
[311511526,1705170648950,-1226.42,0.00022626,2]
[311511527,1705170648959,-151.75,0.00022632,2]
[311511528,1705170648972,-155.19,0.00022632,2]
[311511529,1705170648981,-150.0,0.00022644,2]
[311511530,1705170648991,-169.44603986,0.00022649,2]
[311511531,1705170649001,-155.22748793,0.00022649,2]
[311511532,1705170649012,-155.43994557,0.00022649,2]
[311511533,1705170649022,-1043.80845818,0.00022649,2]
[311511534,1705170649033,-699.23427772,0.00022649,2]
[311511535,1705170649043,-155.6555082,0.00022649,2]
[311511536,1705170649054,-155.0,0.00022649,2]
[311511537,1705170649328,-336.92043028,0.00022649,2]
[311511538,1705170649339,-155.50144254,0.00022649,2]
[311511539,1705170649348,-155.90591231,0.00022649,2]
[311511540,1705170649357,-157.15163255,0.00022649,2]
[311511541,1705170649367,-155.64488774,0.00022649,2]
[311511542,1705170649376,-1042.38109743,0.00022649,2]
[311511543,1705170649385,-214.77502885,0.00022649,2]
[311511544,1705170649394,-163.45351284,0.00022649,2]
[311511545,1705170649404,-3052.64896283,0.00022649,2]
[311511546,1705170649413,-500.0,0.0002265,2]
[311511547,1705170649423,-500.0,0.0002265,2]
[311511548,1705170649432,-234.44,0.0002265,2]
[311511549,1705170649441,-937.95,0.0002265,2]
[311511550,1705170649451,-1476.88,0.0002265,2]
[311511551,1705170649460,-1896.68,0.0002265,2]
[311511552,1705170649470,-1054.96,0.0002265,2]
[311511553,1705170649479,-1083.79,0.0002265,2]
[311511554,1705170649489,-500.0,0.0002265,2]
[311511555,1705170649498,-500.0,0.0002265,2]
[311511556,1705170649508,-661.16,0.0002265,2]
[311511557,1705170649517,-1911.21380393,0.0002265,2]
[311511558,1705170649527,-155.0,0.0002265,2]
[311511559,1705170649537,-951.29019971,0.0002265,2]
[311511560,1705170649548,-258.67963436,0.00022651,2]
[311511561,1705170649558,-4584.90891931,0.00022651,2]
[311511562,1705170649567,-435.15401036,0.00022651,2]
[311511563,1705170649577,-220.76003917,0.00022651,2]
[311511564,1705170649586,-202.94800345,0.00022651,2]
[311511565,1705170649596,-158.34084436,0.00022651,2]
[311511566,1705170649606,-3922.04812057,0.00022651,2]
[311511567,1705170649615,-172.29367536,0.00022651,2]
[311511568,1705170649624,-167.79420251,0.00022651,2]
[311511569,1705170649634,-660.04374522,0.00022651,2]
[311511570,1705170649643,-3324.49211435,0.00022651,2]
[311511571,1705170649653,-524.10489141,0.00022651,2]
[311511572,1705170649662,-157.01318614,0.00022651,2]
[311511573,1705170649671,-267.20940415,0.00022651,2]
[311511574,1705170649681,-9972.39476465,0.00022651,2]
[311511575,1705170649690,-155.0,0.00022651,2]
[311511576,1705170649700,-174.25002141,0.00022651,2]
[311511577,1705170649709,-2681.35430511,0.00022651,2]
[311511578,1705170649719,-284.67224728,0.00022651,2]
[311511579,1705170649729,-1552.68775717,0.00022651,2]
[311511580,1705170649738,-180.1765583,0.00022651,2]
[311511581,1705170649748,-206.3890547,0.00022651,2]
[311511582,1705170649757,-340.311521,0.00022651,2]
[311511583,1705170649767,-305.22469654,0.00022651,2]
[311511584,1705170649777,-157.96436332,0.00022651,2]
[311511585,1705170649786,-155.26339678,0.00022651,2]
[311511586,1705170649797,-485.5928344,0.00022651,2]
[311511587,1705170649807,-155.10772643,0.00022651,2]
[311511588,1705170649817,-206.29751443,0.00022651,2]
[311511589,1705170649827,-2147.89470073,0.00022651,2]
[311511590,1705170649837,-202.95261036,0.00022651,2]
[311511591,1705170649846,-234.81000391,0.00022651,2]
[311511592,1705170649857,-434.88015649,0.00022651,2]
[311511593,1705170649867,-155.0,0.00022651,2]
[311511594,1705170649878,-497.16379601,0.00022651,2]
[311511595,1705170649888,-2049.09728565,0.00022651,2]
[311511596,1705170649900,-166.28493638,0.00022651,2]
[311511597,1705170649909,-871.49739061,0.00022651,2]
[311511598,1705170649920,-269.41266569,0.00022651,2]
[311511599,1705170649929,-219.36359934,0.00022651,2]
[311511600,1705170649939,-400.0,0.00022651,2]
[311511601,1705170649950,-589.26249427,0.00022651,2]
[311511602,1705170649961,-281.57424767,0.00022651,2]
[311511603,1705170649975,-427.60812227,0.00022651,2]
[311511604,1705170649986,-3937.41330267,0.00022651,2]
[311511605,1705170649996,-686.08166058,0.00022651,2]
[311511606,1705170650006,-155.49312417,0.00022651,2]
[311511607,1705170650018,-155.47250895,0.00022651,2]
[311511608,1705170650027,-161.7736666,0.00022651,2]
[311511609,1705170650037,-13002.16292667,0.00022651,2]
[311511610,1705170650049,-327.98998448,0.00022651,2]
[311511611,1705170650060,-155.70944369,0.00022651,2]
[311511612,1705170650069,-2621.14603155,0.00022651,2]
[311511613,1705170650079,-155.75273262,0.00022651,2]
[311511614,1705170650089,-272.75848532,0.00022651,2]
[311511615,1705170650099,-650.75415232,0.00022651,2]
[311511616,1705170650109,-155.0,0.00022651,2]
[311511617,1705170650119,-531.14690522,0.00022651,2]
[311511618,1705170650130,-195.81366957,0.00022651,2]
[311511619,1705170650141,-155.42075614,0.00022651,2]
[311511620,1705170650151,-501.80753335,0.00022651,2]
[311511621,1705170650161,-214.99157807,0.00022651,2]
[311511622,1705170650172,-1200.63953512,0.00022651,2]
[311511623,1705170650183,-363.25910941,0.00022651,2]
[311511624,1705170650193,-1425.63482222,0.00022651,2]
[311511625,1705170650203,-207.52259448,0.00022651,2]
[311511626,1705170650213,-198.49468833,0.00022651,2]
[311511627,1705170650223,-182.17402601,0.00022651,2]
[311511628,1705170650234,-347.25303869,0.00022651,2]
[311511629,1705170650245,-155.36166347,0.00022651,2]
[311511630,1705170650254,-376.60399064,0.00022651,2]
[311511631,1705170650265,-500.0,0.00022652,2]
[311511632,1705170650275,-335.86316863,0.00022652,2]
[311511633,1705170650285,-301.14861586,0.00022652,2]
[311511634,1705170650297,-541.55394128,0.00022652,2]
[311511635,1705170650308,-161.88189063,0.00022652,2]
[311511636,1705170650318,-232.63119894,0.00022652,2]
[311511637,1705170650328,-1580.93516946,0.00022652,2]
[311511638,1705170650339,-308.16945006,0.00022652,2]
[311511639,1705170650349,-196.52875199,0.00022652,2]